[Event "Late-Titled-Tuesday-Blitz-February-06-2024"]
[Site "Chess.com"]
[Date "2024.02.06"]
[Round "5"]
[White "Ducke13"]
[Black "Romadk"]
[Result "1-0"]
[WhiteElo "2301"]
[BlackElo "2509"]
[TimeControl "180+1"]
[EndTime "14:56:34 PST"]
[Termination "Ducke13 won by checkmate"]

1. d4 {[%clk 0:02:50.7]} 1... Nf6 {[%clk 0:02:59.7]} 2. g3 {[%clk 0:02:46.1]}
2... d5 {[%clk 0:02:59.3]} 3. Nf3 {[%clk 0:02:43]} 3... e6 {[%clk 0:02:59.1]} 4.
Bg2 {[%clk 0:02:39]} 4... Be7 {[%clk 0:02:58]} 5. O-O {[%clk 0:02:39.5]} 5...
O-O {[%clk 0:02:58.9]} 6. c4 {[%clk 0:02:39.7]} 6... dxc4 {[%clk 0:02:59.8]} 7.
Na3 {[%clk 0:02:38.8]} 7... c5 {[%clk 0:02:52.1]} 8. Nxc4 {[%clk 0:02:25.6]}
8... Nc6 {[%clk 0:02:49.5]} 9. dxc5 {[%clk 0:02:19.6]} 9... Bxc5 {[%clk
0:02:50.4]} 10. a3 {[%clk 0:02:15.6]} 10... b5 {[%clk 0:02:36]} 11. Nce5 {[%clk
0:01:43.8]} 11... Bb7 {[%clk 0:02:34.9]} 12. Bg5 {[%clk 0:01:31.4]} 12... Nxe5
{[%clk 0:02:07.8]} 13. Nxe5 {[%clk 0:01:28.3]} 13... Bxg2 {[%clk 0:02:05.8]} 14.
Kxg2 {[%clk 0:01:26.2]} 14... Qd5+ {[%clk 0:02:03.4]} 15. Nf3 {[%clk 0:01:23.8]}
15... Rfd8 {[%clk 0:01:51]} 16. Bxf6 {[%clk 0:01:00.4]} 16... gxf6 {[%clk
0:01:49]} 17. Qxd5 {[%clk 0:00:55.8]} 17... Rxd5 {[%clk 0:01:49.9]} 18. Rac1
{[%clk 0:00:54.9]} 18... Rad8 {[%clk 0:01:45.4]} 19. Rc2 {[%clk 0:00:52.1]}
19... Bb6 {[%clk 0:01:43]} 20. Rfc1 {[%clk 0:00:48.3]} 20... Kg7 {[%clk
0:01:42.3]} 21. Ne1 {[%clk 0:00:45.6]} 21... e5 {[%clk 0:01:03.9]} 22. Nd3
{[%clk 0:00:45.4]} 22... f5 {[%clk 0:00:58.8]} 23. Rc6 {[%clk 0:00:33.1]} 23...
R8d7 {[%clk 0:00:33.4]} 24. R1c2 {[%clk 0:00:32.4]} 24... Bd4 {[%clk 0:00:29.7]}
25. Rc8 {[%clk 0:00:23.4]} 25... Bb6 {[%clk 0:00:28.2]} 26. h3 {[%clk
0:00:20.6]} 26... Bd4 {[%clk 0:00:27.8]} 27. Nb4 {[%clk 0:00:17.8]} 27... R5d6
{[%clk 0:00:24.8]} 28. Nc6 {[%clk 0:00:16.8]} 28... Kf6 {[%clk 0:00:19.1]} 29.
e3 {[%clk 0:00:11.8]} 29... Bb6 {[%clk 0:00:18.3]} 30. Nb4 {[%clk 0:00:06.4]}
30... Rd2 {[%clk 0:00:17.5]} 31. Rxd2 {[%clk 0:00:05.7]} 31... Rxd2 {[%clk
0:00:17.1]} 32. Rc6+ {[%clk 0:00:06.3]} 32... Ke7 {[%clk 0:00:15.6]} 33. Rc2
{[%clk 0:00:06.3]} 33... Bxe3 {[%clk 0:00:08.2]} 34. Rxd2 {[%clk 0:00:03.4]}
34... Bxd2 {[%clk 0:00:09.1]} 35. Nc6+ {[%clk 0:00:03.4]} 35... Kd6 {[%clk
0:00:08.5]} 36. Nxa7 {[%clk 0:00:04.3]} 36... Kc5 {[%clk 0:00:06.7]} 37. b3
{[%clk 0:00:04.5]} 37... Bc1 {[%clk 0:00:05.3]} 38. a4 {[%clk 0:00:04.6]} 38...
bxa4 {[%clk 0:00:04.9]} 39. bxa4 {[%clk 0:00:04.9]} 39... Kb6 {[%clk 0:00:05.8]}
40. Nc8+ {[%clk 0:00:04.8]} 40... Ka5 {[%clk 0:00:05.9]} 41. Nd6 {[%clk
0:00:05.1]} 41... Kxa4 {[%clk 0:00:04.6]} 42. Nxf7 {[%clk 0:00:04.9]} 42... Bb2
{[%clk 0:00:04.7]} 43. Nd6 {[%clk 0:00:04.6]} 43... f4 {[%clk 0:00:04.3]} 44.
gxf4 {[%clk 0:00:04.6]} 44... exf4 {[%clk 0:00:05.2]} 45. Kf3 {[%clk 0:00:05.1]}
45... Be5 {[%clk 0:00:05.6]} 46. Nc4 {[%clk 0:00:05.4]} 46... Bc7 {[%clk
0:00:05.9]} 47. Nd2 {[%clk 0:00:05.4]} 47... Kb4 {[%clk 0:00:05.8]} 48. Ke4
{[%clk 0:00:05.6]} 48... Kc3 {[%clk 0:00:05.9]} 49. Nf3 {[%clk 0:00:06]} 49...
Kc2 {[%clk 0:00:04.6]} 50. Ng5 {[%clk 0:00:06.5]} 50... h6 {[%clk 0:00:04.5]}
51. Nf7 {[%clk 0:00:06.6]} 51... Kd2 {[%clk 0:00:04.2]} 52. Nxh6 {[%clk
0:00:06.7]} 52... Ke2 {[%clk 0:00:04.5]} 53. Ng4 {[%clk 0:00:07.4]} 53... Bd8
{[%clk 0:00:01.5]} 54. Kxf4 {[%clk 0:00:07.2]} 54... Bh4 {[%clk 0:00:02]} 55. f3
{[%clk 0:00:06.4]} 55... Bd8 {[%clk 0:00:02.7]} 56. Ne5 {[%clk 0:00:06.3]} 56...
Bc7 {[%clk 0:00:03.6]} 57. h4 {[%clk 0:00:06.2]} 57... Kd2 {[%clk 0:00:02]} 58.
h5 {[%clk 0:00:06.5]} 58... Kc3 {[%clk 0:00:02.8]} 59. h6 {[%clk 0:00:06.9]}
59... Kd4 {[%clk 0:00:03.7]} 60. Kf5 {[%clk 0:00:04.1]} 60... Bxe5 {[%clk
0:00:04.6]} 61. f4 {[%clk 0:00:04.4]} 61... Bh8 {[%clk 0:00:04.6]} 62. Ke6
{[%clk 0:00:04.4]} 62... Ke4 {[%clk 0:00:05.2]} 63. f5 {[%clk 0:00:05]} 63...
Kf4 {[%clk 0:00:05.6]} 64. f6 {[%clk 0:00:05.3]} 64... Kg5 {[%clk 0:00:04.5]}
65. f7 {[%clk 0:00:05.3]} 65... Kxh6 {[%clk 0:00:05.4]} 66. f8=Q+ {[%clk
0:00:05.8]} 66... Bg7 {[%clk 0:00:06.3]} 67. Qg8 {[%clk 0:00:06.4]} 67... Kg6
{[%clk 0:00:06.9]} 68. Qf7+ {[%clk 0:00:06.7]} 68... Kh6 {[%clk 0:00:07.7]} 69.
Kf5 {[%clk 0:00:07.1]} 69... Bh8 {[%clk 0:00:06.2]} 70. Qg6# {[%clk 0:00:07.4]}
1-0

[Event "Late-Titled-Tuesday-Blitz-February-06-2024"]
[Site "Chess.com"]
[Date "2024.02.06"]
[Round "5"]
[White "ProfessorChess101"]
[Black "szachmistrz2500"]
[Result "1-0"]
[WhiteElo "2798"]
[BlackElo "2498"]
[TimeControl "180+1"]
[EndTime "14:56:35 PST"]
[Termination "ProfessorChess101 won by resignation"]

1. e4 {[%clk 0:03:00.6]} 1... c5 {[%clk 0:02:59.3]} 2. Nc3 {[%clk 0:02:59.5]}
2... e6 {[%clk 0:02:55.4]} 3. Nf3 {[%clk 0:02:59.2]} 3... Nc6 {[%clk 0:02:54.5]}
4. d4 {[%clk 0:02:58.7]} 4... cxd4 {[%clk 0:02:54.6]} 5. Nxd4 {[%clk 0:02:59.6]}
5... Qc7 {[%clk 0:02:55.1]} 6. Be3 {[%clk 0:02:55.6]} 6... a6 {[%clk 0:02:52.6]}
7. a3 {[%clk 0:02:55.7]} 7... Nf6 {[%clk 0:02:51.6]} 8. Qf3 {[%clk 0:02:49.3]}
8... Be7 {[%clk 0:02:46.9]} 9. Qg3 {[%clk 0:02:48]} 9... Qxg3 {[%clk 0:02:40.4]}
10. hxg3 {[%clk 0:02:48.9]} 10... d6 {[%clk 0:02:34.8]} 11. Be2 {[%clk 0:02:47]}
11... Bd7 {[%clk 0:02:27.2]} 12. O-O-O {[%clk 0:02:40.6]} 12... Rc8 {[%clk
0:02:17.4]} 13. f4 {[%clk 0:02:32.5]} 13... Nxd4 {[%clk 0:02:03.5]} 14. Bxd4
{[%clk 0:02:32.5]} 14... Bc6 {[%clk 0:02:02.5]} 15. Bf3 {[%clk 0:02:32.9]} 15...
O-O {[%clk 0:01:58.2]} 16. g4 {[%clk 0:02:32.3]} 16... Nd7 {[%clk 0:01:51.1]}
17. g3 {[%clk 0:02:28]} 17... b5 {[%clk 0:01:45]} 18. Rh5 {[%clk 0:02:24.4]}
18... Rfd8 {[%clk 0:01:36.4]} 19. Rdh1 {[%clk 0:02:21.9]} 19... Nf8 {[%clk
0:01:36.6]} 20. Rd1 {[%clk 0:02:13.2]} 20... a5 {[%clk 0:01:32.9]} 21. Bb6
{[%clk 0:02:03.7]} 21... Rd7 {[%clk 0:01:24.8]} 22. Bxa5 {[%clk 0:02:03.8]}
22... g6 {[%clk 0:01:13.4]} 23. Rh2 {[%clk 0:02:00.1]} 23... f5 {[%clk
0:00:37.9]} 24. Rhd2 {[%clk 0:01:53.8]} 24... fxe4 {[%clk 0:00:33.3]} 25. Bxe4
{[%clk 0:01:54.1]} 25... Bxe4 {[%clk 0:00:31.7]} 26. Nxe4 {[%clk 0:01:54.2]}
26... d5 {[%clk 0:00:32.2]} 27. Nf2 {[%clk 0:01:51.5]} 27... Ra7 {[%clk
0:00:31.7]} 28. Bb6 {[%clk 0:01:48.4]} 28... Ra6 {[%clk 0:00:29.9]} 29. Bd4
{[%clk 0:01:38.8]} 29... b4 {[%clk 0:00:30.2]} 30. Rd3 {[%clk 0:01:24.6]} 30...
bxa3 {[%clk 0:00:29.3]} 31. bxa3 {[%clk 0:01:25.3]} 31... Bxa3+ {[%clk
0:00:28.8]} 32. Kd2 {[%clk 0:01:24.9]} 32... Bb4+ {[%clk 0:00:28.7]} 33. c3
{[%clk 0:01:24.4]} 33... Ra2+ {[%clk 0:00:28.3]} 34. Ke3 {[%clk 0:01:24.8]}
34... Bc5 {[%clk 0:00:26.8]} 35. R1d2 {[%clk 0:01:19.5]} 35... Ra1 {[%clk
0:00:25.9]} 36. Re2 {[%clk 0:01:13.2]} 36... Rg1 {[%clk 0:00:22.9]} 37. Kf3
{[%clk 0:01:12.7]} 37... Rc1 {[%clk 0:00:23.1]} 38. g5 {[%clk 0:00:57.4]} 38...
Bxd4 {[%clk 0:00:21.4]} 39. cxd4 {[%clk 0:00:58.3]} 39... Rf1 {[%clk 0:00:19]}
40. Kg2 {[%clk 0:00:56.8]} 40... Rcc1 {[%clk 0:00:18.7]} 41. Ng4 {[%clk
0:00:54.3]} 41... Rg1+ {[%clk 0:00:18]} 42. Kf3 {[%clk 0:00:44.9]} 42... Rcf1+
{[%clk 0:00:17.7]} 43. Rf2 {[%clk 0:00:45.5]} 43... Rxf2+ {[%clk 0:00:15.9]} 44.
Kxf2 {[%clk 0:00:46.4]} 44... Ra1 {[%clk 0:00:15.2]} 45. Rb3 {[%clk 0:00:46.2]}
45... Rd1 {[%clk 0:00:13.6]} 46. Ke3 {[%clk 0:00:42.1]} 46... Rg1 {[%clk
0:00:13.3]} 47. Ke2 {[%clk 0:00:42.7]} 47... Rg2+ {[%clk 0:00:12.7]} 48. Kf3
{[%clk 0:00:40.2]} 48... Rd2 {[%clk 0:00:12.6]} 49. Nf6+ {[%clk 0:00:40.4]}
49... Kh8 {[%clk 0:00:11.3]} 50. Rb8 {[%clk 0:00:38.4]} 50... Kg7 {[%clk
0:00:11.4]} 51. Rb7+ {[%clk 0:00:39.1]} 51... Kh8 {[%clk 0:00:11.7]} 52. Rf7
{[%clk 0:00:39.8]} 52... Rd3+ {[%clk 0:00:06.8]} 53. Ke2 {[%clk 0:00:38.8]}
53... Rxd4 {[%clk 0:00:07]} 54. Rxf8+ {[%clk 0:00:39.2]} 54... Kg7 {[%clk
0:00:07.6]} 55. Rg8+ {[%clk 0:00:40.1]} 55... Kf7 {[%clk 0:00:07.8]} 56. Rh8
{[%clk 0:00:38.5]} 56... e5 {[%clk 0:00:08.2]} 57. fxe5 {[%clk 0:00:36.5]} 57...
Ke6 {[%clk 0:00:08.6]} 58. Re8+ {[%clk 0:00:35.2]} 58... Kf5 {[%clk 0:00:08.7]}
59. e6 {[%clk 0:00:29.2]} 59... Kxg5 {[%clk 0:00:08.9]} 60. Nxh7+ {[%clk
0:00:29]} 60... Kh6 {[%clk 0:00:09.4]} 61. Nf6 {[%clk 0:00:25.2]} 61... Kg7
{[%clk 0:00:08.8]} 62. Nd7 {[%clk 0:00:25.6]} 62... Re4+ {[%clk 0:00:08.6]} 63.
Kf3 {[%clk 0:00:26.2]} 63... Re1 {[%clk 0:00:08.3]} 64. Nb6 {[%clk 0:00:26.5]}
64... d4 {[%clk 0:00:08.7]} 65. Nc4 {[%clk 0:00:21.8]} 65... d3 {[%clk
0:00:08.8]} 66. Rd8 {[%clk 0:00:20.1]} 66... Kf6 {[%clk 0:00:08.7]} 67. Rxd3
{[%clk 0:00:20]} 67... Rxe6 {[%clk 0:00:07.6]} 68. Rd6 {[%clk 0:00:20.4]} 68...
Rxd6 {[%clk 0:00:04.9]} 69. Nxd6 {[%clk 0:00:21.3]} 69... Ke5 {[%clk 0:00:04.3]}
70. Nc4+ {[%clk 0:00:19.7]} 70... Kf5 {[%clk 0:00:04.3]} 71. Ne3+ {[%clk
0:00:20.3]} 71... Kg5 {[%clk 0:00:04.7]} 72. Ke4 {[%clk 0:00:20]} 72... Kf6
{[%clk 0:00:05.1]} 73. Kf4 {[%clk 0:00:20.7]} 73... g5+ {[%clk 0:00:05.9]} 74.
Kg4 {[%clk 0:00:20.7]} 74... Kg6 {[%clk 0:00:06.8]} 75. Nd5 {[%clk 0:00:18.9]}
75... Kh6 {[%clk 0:00:06.8]} 76. Nc3 {[%clk 0:00:19.6]} 76... Kg6 {[%clk
0:00:06.1]} 77. Ne4 {[%clk 0:00:20.3]} 1-0

[Event "Late-Titled-Tuesday-Blitz-February-06-2024"]
[Site "Chess.com"]
[Date "2024.02.06"]
[Round "5"]
[White "dedpihto_v_kozhanom_palto"]
[Black "platy3"]
[Result "0-1"]
[WhiteElo "2700"]
[BlackElo "2951"]
[TimeControl "180+1"]
[EndTime "14:56:36 PST"]
[Termination "platy3 won by resignation"]

1. c4 {[%clk 0:02:57.4]} 1... Nf6 {[%clk 0:02:57.8]} 2. Nc3 {[%clk 0:02:57.8]}
2... e6 {[%clk 0:02:55.3]} 3. e4 {[%clk 0:02:57.9]} 3... d5 {[%clk 0:02:55.7]}
4. e5 {[%clk 0:02:57.4]} 4... d4 {[%clk 0:02:54.9]} 5. exf6 {[%clk 0:02:58.3]}
5... dxc3 {[%clk 0:02:55.3]} 6. bxc3 {[%clk 0:02:59.2]} 6... Qxf6 {[%clk
0:02:55.6]} 7. d4 {[%clk 0:03:00.1]} 7... b6 {[%clk 0:02:55.1]} 8. Be2 {[%clk
0:03:00.2]} 8... Bb7 {[%clk 0:02:54]} 9. Bf3 {[%clk 0:03:00.9]} 9... Bxf3 {[%clk
0:02:52.9]} 10. Nxf3 {[%clk 0:03:01.8]} 10... Nd7 {[%clk 0:02:47.5]} 11. O-O
{[%clk 0:03:00.8]} 11... Bd6 {[%clk 0:02:36.5]} 12. Qa4 {[%clk 0:02:59.8]} 12...
Qe7 {[%clk 0:02:18.6]} 13. Bg5 {[%clk 0:02:24.6]} 13... f6 {[%clk 0:02:18.1]}
14. Bh4 {[%clk 0:02:24.8]} 14... O-O {[%clk 0:02:18.4]} 15. Rfe1 {[%clk
0:02:23.6]} 15... Qf7 {[%clk 0:02:18.2]} 16. Rad1 {[%clk 0:02:14.1]} 16... Rfe8
{[%clk 0:02:16.1]} 17. Bg3 {[%clk 0:02:14]} 17... Nf8 {[%clk 0:01:56.9]} 18. Qc6
{[%clk 0:01:58.6]} 18... Qd7 {[%clk 0:01:56.5]} 19. Qe4 {[%clk 0:01:59.1]} 19...
Qa4 {[%clk 0:01:48.9]} 20. c5 {[%clk 0:01:52.9]} 20... bxc5 {[%clk 0:01:45.4]}
21. dxc5 {[%clk 0:01:44.5]} 21... Qxe4 {[%clk 0:01:44.8]} 22. Rxe4 {[%clk
0:01:45.4]} 22... Bxg3 {[%clk 0:01:44.1]} 23. hxg3 {[%clk 0:01:46.3]} 23... Red8
{[%clk 0:01:44.2]} 24. Rxd8 {[%clk 0:01:40.4]} 24... Rxd8 {[%clk 0:01:45.1]} 25.
Ra4 {[%clk 0:01:40.6]} 25... Rd5 {[%clk 0:01:45]} 26. Rxa7 {[%clk 0:01:24.5]}
26... Rxc5 {[%clk 0:01:45.1]} 27. Ra3 {[%clk 0:01:24.2]} 27... Nd7 {[%clk
0:01:45.5]} 28. Kf1 {[%clk 0:01:23]} 28... Nb6 {[%clk 0:01:45.4]} 29. Ke2 {[%clk
0:01:22.5]} 29... e5 {[%clk 0:01:43.8]} 30. Nd2 {[%clk 0:01:19.8]} 30... Kf7
{[%clk 0:01:39.1]} 31. Kd3 {[%clk 0:01:20]} 31... f5 {[%clk 0:01:36.1]} 32. Ra7
{[%clk 0:01:17.1]} 32... Ke6 {[%clk 0:01:31.4]} 33. Nb3 {[%clk 0:01:13.3]} 33...
Rd5+ {[%clk 0:01:30.8]} 34. Kc2 {[%clk 0:01:11.7]} 34... Kd6 {[%clk 0:01:29.5]}
35. a4 {[%clk 0:01:11.2]} 35... Nc4 {[%clk 0:01:27]} 36. a5 {[%clk 0:01:09.6]}
36... Na3+ {[%clk 0:01:20.9]} 37. Kb2 {[%clk 0:01:09.3]} 37... Nc4+ {[%clk
0:01:21.3]} 38. Kc2 {[%clk 0:01:09.8]} 38... Kc6 {[%clk 0:01:18.8]} 39. a6
{[%clk 0:01:04.9]} 39... Rd8 {[%clk 0:01:10.5]} 40. Rb7 {[%clk 0:01:05]} 40...
Ra8 {[%clk 0:01:04.2]} 41. Rb4 {[%clk 0:01:05.4]} 41... Nb6 {[%clk 0:01:04.3]}
42. Na5+ {[%clk 0:00:58.2]} 42... Kd5 {[%clk 0:00:49.1]} 43. Rb5+ {[%clk
0:00:56.3]} 43... Kd6 {[%clk 0:00:49.2]} 44. Nb7+ {[%clk 0:00:53.2]} 44... Ke6
{[%clk 0:00:42.8]} 45. Kb3 {[%clk 0:00:45]} 45... Nd7 {[%clk 0:00:39.9]} 46. Ra5
{[%clk 0:00:40.2]} 46... c6 {[%clk 0:00:39.7]} 47. Kb4 {[%clk 0:00:34.4]} 47...
Nb6 {[%clk 0:00:29.4]} 48. Kc5 {[%clk 0:00:28.1]} 48... Nd5 {[%clk 0:00:29.7]}
49. Kxc6 {[%clk 0:00:12.9]} 49... Rc8+ {[%clk 0:00:23.9]} 50. Kb5 {[%clk
0:00:13]} 50... Rxc3 {[%clk 0:00:17.1]} 51. a7 {[%clk 0:00:10.3]} 51... Nc7+
{[%clk 0:00:17.1]} 52. Kb4 {[%clk 0:00:10.3]} 52... Rc2 {[%clk 0:00:17.7]} 53.
Nc5+ {[%clk 0:00:09]} 53... Kd6 {[%clk 0:00:17.5]} 54. Nb3 {[%clk 0:00:09.2]}
54... Rxf2 {[%clk 0:00:15.1]} 55. a8=Q {[%clk 0:00:08.5]} 55... Nxa8 {[%clk
0:00:15.2]} 56. Rxa8 {[%clk 0:00:09.4]} 56... Rxg2 {[%clk 0:00:15.4]} 57. Ra7
{[%clk 0:00:09.8]} 57... Rxg3 {[%clk 0:00:15.2]} 58. Nc5 {[%clk 0:00:09]} 58...
h5 {[%clk 0:00:12.3]} 59. Kc4 {[%clk 0:00:09.3]} 59... Rg4+ {[%clk 0:00:12.2]}
60. Kb5 {[%clk 0:00:09.7]} 60... e4 {[%clk 0:00:12]} 61. Rd7+ {[%clk 0:00:08.5]}
61... Ke5 {[%clk 0:00:12.4]} 62. Kc4 {[%clk 0:00:08.8]} 62... g6 {[%clk
0:00:09.6]} 63. Re7+ {[%clk 0:00:08.4]} 63... Kf4 {[%clk 0:00:09.9]} 64. Kd4
{[%clk 0:00:08.1]} 64... h4 {[%clk 0:00:08.9]} 65. Ne6+ {[%clk 0:00:08.7]} 65...
Kg3 {[%clk 0:00:09.2]} 66. Ra7 {[%clk 0:00:09.5]} 66... h3 {[%clk 0:00:09.2]}
67. Ke3 {[%clk 0:00:09.6]} 67... h2 {[%clk 0:00:08.9]} 68. Ra1 {[%clk 0:00:10]}
68... Kg2 {[%clk 0:00:08.8]} 69. Nf4+ {[%clk 0:00:09.9]} 69... Rxf4 {[%clk
0:00:08.6]} 70. Kxf4 {[%clk 0:00:10.8]} 70... h1=Q {[%clk 0:00:08.6]} 71. Ra2+
{[%clk 0:00:11.7]} 71... Kh3 {[%clk 0:00:08.5]} 72. Ra3+ {[%clk 0:00:12.2]}
72... Qf3+ {[%clk 0:00:07.3]} 0-1

[Event "Late-Titled-Tuesday-Blitz-February-06-2024"]
[Site "Chess.com"]
[Date "2024.02.06"]
[Round "5"]
[White "WindWhistler11"]
[Black "ChessBrainiacOnTwitch"]
[Result "0-1"]
[WhiteElo "2511"]
[BlackElo "2849"]
[TimeControl "180+1"]
[EndTime "14:56:36 PST"]
[Termination "ChessBrainiacOnTwitch won by resignation"]

1. Nf3 {[%clk 0:03:00.5]} 1... Nf6 {[%clk 0:02:54.7]} 2. g3 {[%clk 0:02:59.3]}
2... e6 {[%clk 0:02:54.7]} 3. Bg2 {[%clk 0:02:58.7]} 3... d5 {[%clk 0:02:54.8]}
4. c4 {[%clk 0:02:58.1]} 4... d4 {[%clk 0:02:53.1]} 5. e3 {[%clk 0:02:57.6]}
5... c5 {[%clk 0:02:48.2]} 6. exd4 {[%clk 0:02:56.8]} 6... cxd4 {[%clk
0:02:49.1]} 7. O-O {[%clk 0:02:57.1]} 7... Nc6 {[%clk 0:02:48.7]} 8. d3 {[%clk
0:02:57.3]} 8... Bd6 {[%clk 0:02:45.1]} 9. Na3 {[%clk 0:02:50.2]} 9... O-O
{[%clk 0:02:44.2]} 10. Re1 {[%clk 0:02:48.2]} 10... Re8 {[%clk 0:02:41.4]} 11.
Nc2 {[%clk 0:02:39.9]} 11... e5 {[%clk 0:02:39.6]} 12. Bg5 {[%clk 0:02:38.2]}
12... Bf5 {[%clk 0:02:39.4]} 13. Nh4 {[%clk 0:02:36]} 13... Be6 {[%clk
0:02:29.7]} 14. a3 {[%clk 0:02:19.3]} 14... h6 {[%clk 0:02:28.4]} 15. Bxf6
{[%clk 0:02:11.7]} 15... Qxf6 {[%clk 0:02:29.3]} 16. b4 {[%clk 0:02:10.3]} 16...
g5 {[%clk 0:02:18.7]} 17. Nf3 {[%clk 0:02:09.8]} 17... Bg4 {[%clk 0:02:19.2]}
18. h3 {[%clk 0:02:00]} 18... Bh5 {[%clk 0:02:17.8]} 19. b5 {[%clk 0:01:35.4]}
19... e4 {[%clk 0:01:55.2]} 20. Rxe4 {[%clk 0:01:22.6]} 20... Rxe4 {[%clk
0:01:51.8]} 21. dxe4 {[%clk 0:01:22.9]} 21... Ne5 {[%clk 0:01:25.7]} 22. Ncxd4
{[%clk 0:01:07.5]} 22... Bc5 {[%clk 0:01:16.8]} 23. g4 {[%clk 0:00:48.1]} 23...
Rd8 {[%clk 0:00:50.5]} 24. gxh5 {[%clk 0:00:32.3]} 24... Bxd4 {[%clk 0:00:44.3]}
25. Nxd4 {[%clk 0:00:29.7]} 25... Rxd4 {[%clk 0:00:44.7]} 26. Qe2 {[%clk
0:00:23.1]} 26... Qf4 {[%clk 0:00:42.1]} 27. Rd1 {[%clk 0:00:19.9]} 27... Rxc4
{[%clk 0:00:40.7]} 28. Qd2 {[%clk 0:00:03.5]} 28... Nf3+ {[%clk 0:00:16.8]} 29.
Bxf3 {[%clk 0:00:03.2]} 29... Qxf3 {[%clk 0:00:17.7]} 30. Qd3 {[%clk 0:00:01.7]}
30... Qxe4 {[%clk 0:00:05.6]} 31. Qxe4 {[%clk 0:00:01.8]} 31... Rxe4 {[%clk
0:00:06.5]} 32. Rd7 {[%clk 0:00:02.3]} 32... Ra4 {[%clk 0:00:07]} 33. Rc7 {[%clk
0:00:02.2]} 33... Rxa3 {[%clk 0:00:07.7]} 34. Kg2 {[%clk 0:00:02.8]} 34... b6
{[%clk 0:00:07.7]} 35. Rc8+ {[%clk 0:00:02.8]} 35... Kg7 {[%clk 0:00:08.2]} 36.
Rc6 {[%clk 0:00:03.6]} 36... Ra5 {[%clk 0:00:08.5]} 37. Rc7 {[%clk 0:00:03.7]}
37... Kf6 {[%clk 0:00:09.2]} 38. Kf3 {[%clk 0:00:03.6]} 38... Ke6 {[%clk
0:00:09.8]} 39. Rc6+ {[%clk 0:00:03.2]} 39... Kf5 {[%clk 0:00:05.8]} 40. Rxh6
{[%clk 0:00:04.1]} 40... Rxb5 {[%clk 0:00:05.5]} 41. Kg3 {[%clk 0:00:04.2]}
41... Rb3+ {[%clk 0:00:05.8]} 42. f3 {[%clk 0:00:04.8]} 42... a5 {[%clk
0:00:06.3]} 43. Rh7 {[%clk 0:00:05.2]} 43... Kf6 {[%clk 0:00:06.8]} 44. Rh8
{[%clk 0:00:05.5]} 44... Kg7 {[%clk 0:00:06.7]} 45. Rb8 {[%clk 0:00:05.1]} 45...
a4 {[%clk 0:00:06.9]} 46. Ra8 {[%clk 0:00:05.3]} 46... b5 {[%clk 0:00:06.8]} 47.
Ra6 {[%clk 0:00:06]} 47... f6 {[%clk 0:00:06.6]} 48. Ra7+ {[%clk 0:00:05]} 48...
Kh6 {[%clk 0:00:07.2]} 49. Kg4 {[%clk 0:00:05.5]} 49... a3 {[%clk 0:00:06.1]}
50. h4 {[%clk 0:00:04.4]} 50... gxh4 {[%clk 0:00:04.9]} 51. Ra6 {[%clk 0:00:05]}
51... Kg7 {[%clk 0:00:05]} 52. Kxh4 {[%clk 0:00:04.7]} 52... Rxf3 {[%clk
0:00:03]} 53. Kg4 {[%clk 0:00:04.8]} 53... Rb3 {[%clk 0:00:03]} 54. Kf5 {[%clk
0:00:05.3]} 54... b4 {[%clk 0:00:02.7]} 55. Ra7+ {[%clk 0:00:06.2]} 55... Kh6
{[%clk 0:00:03.1]} 56. Ra8 {[%clk 0:00:06.4]} 56... Rf3+ {[%clk 0:00:02.7]} 57.
Kg4 {[%clk 0:00:06.9]} 57... Rb3 {[%clk 0:00:02.9]} 58. Kf5 {[%clk 0:00:07.4]}
58... Kg7 {[%clk 0:00:03.6]} 59. Ra7+ {[%clk 0:00:06.8]} 59... Kg8 {[%clk
0:00:01.9]} 60. Kg6 {[%clk 0:00:06.7]} 60... Rg3+ {[%clk 0:00:02.3]} 61. Kxf6
{[%clk 0:00:07.1]} 61... Rf3+ {[%clk 0:00:02.1]} 62. Kg6 {[%clk 0:00:07.6]}
62... Kf8 {[%clk 0:00:02.8]} 63. Ra8+ {[%clk 0:00:07.3]} 63... Ke7 {[%clk
0:00:03.2]} 64. Ra7+ {[%clk 0:00:07.8]} 64... Ke6 {[%clk 0:00:03.6]} 65. h6
{[%clk 0:00:08.7]} 65... Rg3+ {[%clk 0:00:04.2]} 66. Kh5 {[%clk 0:00:09]} 66...
b3 {[%clk 0:00:04.6]} 67. Rxa3 {[%clk 0:00:08.7]} 67... b2 {[%clk 0:00:05]} 68.
Rxg3 {[%clk 0:00:09.6]} 68... b1=Q {[%clk 0:00:05.6]} 69. Rg6+ {[%clk
0:00:10.1]} 69... Kf7 {[%clk 0:00:05.6]} 70. Rg7+ {[%clk 0:00:09.9]} 70... Kf6
{[%clk 0:00:06.2]} 71. Rg8 {[%clk 0:00:09.7]} 71... Qh1+ {[%clk 0:00:05.9]} 72.
Kg4 {[%clk 0:00:09.6]} 72... Qg2+ {[%clk 0:00:06.4]} 0-1